bitfinex-derivatives/quotes_ETHF0:USTF0_20250712
["timestamp","ask_amount","ask_price","bid_price","bid_amount"]
[1752305879452,49.6322,2965.9,2965.8,4.96165]
[1752305880066,50.30622,2965.9,2965.8,4.2876]
[1752305880860,50.30622,2965.9,2965.8,3.2078]
[1752305883665,50.30622,2965.9,2965.8,4.2876]
[1752305883865,50.30622,2965.9,2965.8,4.96165]
[1752305884366,50.30622,2965.9,2965.8,4.2876]
[1752305886772,50.30622,2965.9,2965.8,1.0798]
[1752305887768,50.30622,2965.9,2965.8,1.75385]
[1752305888468,47.8203,2965.9,2965.8,1.83765]
[1752305889359,49.43352,2965.9,2965.8,1.75385]
[1752305890069,48.7595,2965.9,2965.8,1.75385]
[1752305890666,46.471,2965.9,2965.8,1.83765]
[1752305890961,2.02833671,2966.1,2966.0,0.808]
[1752305891165,48.38533671,2966.1,2966.0,4.9616]
[1752305891364,47.71135671,2966.1,2966.0,5.0454]
[1752305892466,46.36205671,2966.1,2966.0,5.0454]
[1752305892667,0.00505671,2966.1,2966.0,5.0454]
[1752305893071,2.86533,2966.8,2966.7,0.79974]
[1752305893274,49.4747,2966.8,2966.7,1.74554]
[1752305893968,50.14852,2966.8,2966.7,1.0717]
[1752305894570,50.14852,2966.8,2966.7,0.9458]
[1752305897373,50.14852,2966.8,2966.7,1.61964]
[1752305897574,50.14852,2966.8,2966.7,0.9458]
[1752305900173,50.14852,2966.8,2966.7,1.61964]
[1752305900378,50.14852,2966.8,2966.7,1.68234]
[1752305900577,50.14852,2966.8,2966.7,1.0085]
[1752305901277,50.14852,2966.8,2966.7,1.68234]
[1752305901678,50.14852,2966.8,2966.7,1.0085]
[1752305901976,50.14852,2966.8,2966.7,1.68234]
[1752305902377,48.5355,2966.8,2966.7,1.68234]
[1752305902577,49.508,2966.8,2966.7,1.68234]
[1752305902979,47.6628,2966.8,2966.7,1.72304]
[1752305903479,1.3188,2966.8,2966.7,1.72304]
[1752305903876,46.29,2967.1,2966.8,0.67382]
[1752305904081,47.6088,2967.1,2967.0,4.79207]
[1752305904778,48.5813,2967.1,2967.0,4.79207]
[1752305905078,49.25505,2967.1,2967.0,4.1183]
[1752305906284,49.25505,2967.1,2967.0,4.79207]
[1752305906582,48.5813,2967.1,2967.0,4.79207]
[1752305907481,49.25505,2967.1,2967.0,4.1183]
[1752305907681,49.25505,2967.1,2967.0,4.79207]
[1752305907882,49.25505,2967.1,2967.0,4.1183]
[1752305908387,49.25505,2967.1,2967.0,4.79207]
[1752305909679,49.25505,2967.1,2967.0,3.2078]
[1752305909884,3.88262,2966.8,2966.7,3.88163]
[1752305910080,50.16662,2966.8,2966.7,3.88163]
[1752305910286,50.16662,2966.8,2966.7,3.2078]
[1752305910481,50.16662,2966.8,2966.7,3.88164]
[1752305910678,49.4928,2966.8,2966.7,3.88164]
[1752305910877,49.4928,2966.8,2966.7,4.79214]
[1752305911083,50.16662,2966.8,2966.7,4.79214]
[1752305912589,49.4928,2966.8,2966.7,4.79214]
[1752305913489,48.5203,2966.8,2966.7,4.79214]
[1752305914588,1.3188,2966.8,2966.7,4.79214]
[1752305915992,1.3188,2966.9,2966.8,0.9105]
[1752305916193,1.3188,2966.9,2966.8,1.58432]
[1752305916990,0.00505671,2967.0,2966.9,1.5843]
[1752305920790,1.32385671,2967.0,2966.9,1.5843]
[1752305922793,0.00505671,2967.0,2966.9,1.5843]
[1752305924695,0.00505671,2967.0,2966.9,3.99693148]
[1752305925697,0.00505671,2967.0,2966.9,1.5843]
[1752305926089,3.1691,2967.5,2967.4,1.65218]
[1752305926289,3.1691,2967.5,2967.4,4.85998]
[1752305931503,51.32105507,2967.5,2967.4,3.2078]
[1752305931699,51.99471507,2967.5,2967.4,3.88148]
[1752305931904,51.99471507,2967.5,2967.4,3.2078]
[1752305932602,49.4411,2967.5,2967.4,3.88148]
[1752305933409,50.11476,2967.5,2967.4,3.2078]
[1752305937405,3.84283,2967.2,2967.1,0.67374]
[1752305937604,50.11183,2967.2,2967.1,0.67374]
[1752305938008,49.4381,2967.2,2967.1,0.67374]
[1752305938708,47.79163,2967.2,2967.0,3.88156]
[1752305938912,47.79163,2967.2,2966.6,2.41132122]
[1752305938913,3.84292,2966.8,2966.6,2.41132122]
[1752305939103,55.11192,2966.8,2966.4,3.08522122]
[1752305939409,55.11192,2966.8,2966.4,0.6739]
[1752305939901,55.11192,2966.8,2966.4,3.08522122]
[1752305940211,55.11192,2966.8,2966.4,0.6739]
[1752305940510,50.11192,2966.8,2966.3,3.88172]
[1752305940804,3.1691,2966.5,2966.4,0.6739]
[1752305941008,49.4421,2966.5,2966.4,3.08522122]
[1752305941209,50.11599,2966.5,2966.4,2.41132122]
[1752305941400,1.52281,2966.4,2966.3,3.2078]
[1752305941604,3.1691,2966.4,2966.3,3.88173]
[1752305942497,3.84301,2966.4,2966.3,3.2078]
[1752305943004,0.8489,2966.0,2965.9,3.2078]
[1752305943203,49.4421,2966.0,2965.9,3.88181]
[1752305944502,49.4421,2966.0,2965.9,4.80021]
[1752305944709,49.4421,2966.0,2965.9,5.77871]
[1752305945811,49.4421,2966.0,2965.9,4.80021]
[1752305949408,48.5161,2966.2,2966.1,3.89618]
[1752305952909,49.4471,2966.2,2966.1,3.89618]
[1752305953712,49.4471,2966.2,2966.1,2.57088]
[1752305953912,49.4471,2966.2,2966.1,1.59238]
[1752305954112,49.4471,2966.2,2966.1,2.57088]
[1752305954612,49.4471,2966.2,2966.0,0.674]
[1752305954613,3.0759,2966.1,2966.0,0.674]
[1752305955014,3.74988,2966.1,2966.0,0.674]
[1752305955416,3.0759,2966.1,2966.0,0.674]
[1752305955614,3.74988,2966.1,2966.0,1.5744]
[1752305955915,3.0759,2966.1,2966.0,2.4716]
[1752305957720,1.2761,2966.1,2966.0,3.7377]
[1752305958314,3.76948,2966.1,2966.0,2.4716]
[1752305958521,3.7695,2966.0,2965.9,3.2078]
[1752305958816,50.0495,2966.0,2965.9,3.2078]
[1752305959017,50.0495,2966.0,2965.9,3.88182]
[1752305959316,1.8194,2965.7,2965.6,0.67408]
[1752305959617,49.3755,2965.7,2965.6,0.67408]
[1752305960021,50.04957,2965.7,2965.6,0.67408]
[1752305960322,49.3755,2965.7,2965.6,0.67408]
[1752305960620,49.3755,2965.7,2965.6,3.73778]
[1752305960921,49.3755,2965.7,2965.6,2.47168]
[1752305962620,50.04957,2965.7,2965.6,2.47168]
[1752305963321,49.3755,2965.7,2965.6,2.47168]
[1752305965520,49.3755,2965.7,2965.6,3.73778]
[1752305966424,49.3755,2965.7,2965.6,2.47168]
[1752305967220,50.04957,2965.7,2965.6,1.7976]
[1752305967526,50.04957,2965.7,2965.4,0.00505671]
[1752305967527,3.0955,2965.5,2965.4,0.00505671]
[1752305967826,49.3775,2965.5,2965.4,0.00505671]
[1752305968015,50.05161,2965.5,2965.4,0.00505671]
[1752305968622,50.05161,2965.5,2965.4,0.67919671]
[1752305968824,49.3775,2965.5,2965.4,0.67919671]
[1752305969022,50.05161,2965.5,2965.4,0.67919671]
[1752305969423,49.3775,2965.5,2965.4,0.67919671]
[1752305969827,50.05161,2965.5,2965.4,0.67919671]
[1752305970126,50.05161,2965.5,2965.4,0.00505671]
[1752305970521,50.05161,2965.5,2965.4,0.67919671]
[1752305970927,50.05161,2965.5,2965.4,0.00505671]
[1752305971226,50.05161,2965.5,2965.4,0.67919671]
[1752305973831,50.05161,2965.5,2965.4,0.00505671]
[1752305974030,50.05161,2965.5,2965.4,0.67919671]
[1752305975329,50.05161,2965.5,2965.4,0.00505671]
[1752305975522,50.05161,2965.5,2965.4,0.67919671]
[1752305975721,50.05161,2965.5,2965.4,0.00505671]
[1752305978838,50.05161,2965.5,2965.4,0.67919671]
[1752305979138,50.05161,2965.5,2965.4,0.00505671]
[1752305979340,50.05161,2965.5,2965.4,0.67919671]
[1752305979741,50.05161,2965.5,2965.4,1.57959671]
[1752305980242,50.05161,2965.5,2965.4,2.47679671]
[1752305980442,50.05161,2965.5,2965.4,1.80265671]
[1752305980644,50.05161,2965.5,2965.4,2.47679671]
[1752305984950,46.281,2965.5,2965.4,3.75319671]
[1752305985841,0.9506,2965.8,2965.4,0.00505671]
[1752305986049,46.281,2965.7,2965.6,3.72569]
[1752305986247,3.0665,2966.0,2965.9,3.72562]
[1752305986447,49.3475,2966.0,2965.9,2.44922]
[1752305987350,49.3475,2966.0,2965.9,3.72562]
[1752305988650,50.0215,2966.0,2965.9,3.72562]
[1752305988851,50.0215,2966.0,2965.9,2.44922]
[1752305989852,49.3475,2966.0,2965.9,2.44922]
[1752305990054,50.0215,2966.0,2965.9,5.65702]
[1752305990453,50.0215,2966.0,2965.9,2.44922]
[1752305990855,49.3475,2966.0,2965.9,2.44922]
[1752305991356,50.0215,2966.0,2965.9,5.65702]
[1752305991558,1.53712,2965.9,2965.8,0.67404]
[1752305991757,3.74052,2965.9,2965.8,0.67404]
[1752305991958,3.0665,2965.9,2965.8,0.67404]
[1752305992551,3.0665,2965.9,2965.8,2.44924]
[1752305993057,3.0665,2965.9,2965.8,5.65704]
[1752305994058,3.0665,2965.9,2965.8,6.93344]
[1752305995761,3.74052,2965.9,2965.8,6.93344]
[1752305996061,3.74052,2965.9,2965.8,2.44924]
[1752305996257,3.0665,2965.9,2965.8,5.65704]
[1752305997860,3.74052,2965.9,2965.8,5.65704]
[1752305998162,3.0665,2965.9,2965.8,5.65704]
[1752305998361,3.74052,2965.9,2965.8,5.65704]
[1752305998560,3.0665,2965.9,2965.8,5.65704]
[1752305999059,3.74052,2965.9,2965.8,6.93344]
[1752305999256,3.74052,2965.9,2965.8,5.65704]
[1752305999664,3.0665,2965.9,2965.8,5.65704]
[1752306000460,3.74052,2965.9,2965.8,5.65704]
[1752306000663,3.0665,2965.9,2965.8,5.65704]
[1752306001062,3.74052,2965.9,2965.8,4.69845]
[1752306001762,3.0665,2965.9,2965.8,4.69845]
[1752306002265,3.0665,2965.9,2965.8,5.65705]
[1752306004367,3.0665,2965.9,2965.8,6.90375]
[1752306007166,3.0665,2965.9,2965.8,5.65705]
[1752306007366,3.74052,2965.9,2965.8,5.65705]
[1752306008467,3.0665,2965.9,2965.8,5.65705]
[1752306009468,3.0665,2965.9,2965.8,6.90375]
[1752306009666,3.74052,2965.9,2965.8,6.90375]
[1752306009866,3.74052,2965.9,2965.8,5.65705]
[1752306010169,3.74052,2965.9,2965.8,2.44925]
[1752306010467,3.0665,2965.9,2965.8,5.65705]
[1752306011461,3.0665,2965.9,2965.8,6.90375]
[1752306011862,3.74052,2965.9,2965.8,6.90375]
[1752306012066,3.74052,2965.9,2965.8,5.65705]
[1752306012772,3.0665,2965.9,2965.8,5.65705]
[1752306014075,3.74052,2965.9,2965.8,5.65705]
[1752306014471,3.0665,2965.9,2965.8,5.65705]
[1752306014671,3.74052,2965.9,2965.8,5.65705]
[1752306014876,3.0665,2965.9,2965.8,5.65705]
[1752306016577,3.0665,2965.9,2965.8,6.88565]
[1752306017281,3.0665,2965.9,2965.8,5.65705]
[1752306017878,3.0665,2965.9,2965.8,6.88565]
[1752306018678,3.74052,2965.9,2965.8,6.88565]
[1752306019280,3.74052,2965.9,2965.8,5.65705]
[1752306021178,3.0665,2965.9,2965.8,5.65705]
[1752306021579,3.74052,2965.9,2965.8,3.88185]
[1752306022268,3.74052,2965.9,2965.8,5.70645]
[1752306022474,3.0665,2965.9,2965.8,5.70645]
[1752306022678,3.74052,2965.9,2965.8,5.70645]
[1752306023677,3.0665,2965.9,2965.8,5.70645]
[1752306024179,3.74052,2965.9,2965.8,5.70645]
[1752306025182,3.74052,2965.9,2965.8,4.72295]
[1752306025379,3.74617,2965.7,2965.6,2.41132122]
[1752306025583,49.99417,2965.7,2965.6,2.41132122]
[1752306025778,49.99417,2965.7,2965.6,3.08540122]
[1752306025984,49.3201,2965.7,2965.6,3.08540122]
[1752306026681,49.99417,2965.7,2965.6,3.08540122]
[1752306027281,49.3201,2965.7,2965.6,4.06890122]
[1752306027486,49.3201,2965.7,2965.6,4.91000122]
[1752306028690,49.99417,2965.7,2965.6,4.91000122]
[1752306029390,49.3201,2965.7,2965.6,4.91000122]
[1752306030892,49.99417,2965.7,2965.6,4.91000122]
[1752306031098,49.3201,2965.7,2965.6,4.91000122]
[1752306031292,49.3201,2965.7,2965.6,8.11780122]
[1752306031491,49.99417,2965.7,2965.6,8.11780122]
[1752306031689,49.99417,2965.7,2965.6,7.13430122]
[1752306032093,49.99417,2965.7,2965.6,3.92650122]
[1752306032294,49.99417,2965.7,2965.6,7.13430122]
[1752306032493,49.3201,2965.7,2965.6,7.13430122]
[1752306034093,49.3201,2965.7,2965.6,8.11780122]
[1752306036200,49.99417,2965.7,2965.6,8.11780122]
[1752306036500,49.3201,2965.7,2965.6,8.11780122]
[1752306036700,49.99417,2965.7,2965.6,8.11780122]
[1752306037199,49.3201,2965.7,2965.6,8.11780122]
[1752306040412,49.99417,2965.7,2965.6,8.11780122]
[1752306040712,49.99417,2965.7,2965.6,6.29320122]
[1752306041208,49.99417,2965.7,2965.6,5.61912122]
[1752306041411,49.99417,2965.7,2965.6,2.41132122]
[1752306044215,0.67409,2965.6,2965.5,3.08543122]
[1752306044414,1.47549,2965.6,2965.5,0.67411]
[1752306044714,2.38221,2965.5,2965.4,8.10209793]
[1752306044916,49.83501,2965.5,2965.4,8.10209793]
[1752306045214,49.83501,2965.5,2965.4,5.62417793]
[1752306045814,49.83501,2965.5,2965.4,6.29831793]
[1752306046515,49.83501,2965.5,2965.4,3.21285671]
[1752306047817,49.83501,2965.5,2965.4,0.00505671]
[1752306054522,49.1609,2965.5,2965.4,2.43309671]
[1752306054723,49.1609,2965.5,2965.4,3.61579671]
[1752306055018,47.4528,2965.5,2965.4,3.61579671]
[1752306055318,3.016,2965.9,2965.8,0.67405]
[1752306055514,46.222,2965.9,2965.8,3.61065]
[1752306056620,46.222,2965.9,2965.8,6.02197122]
[1752306057924,46.216,2966.2,2966.1,0.8203]
[1752306058227,48.4306,2966.2,2966.1,3.61058]
[1752306060223,49.10456,2966.2,2966.1,1.7539]
[1752306060427,0.8014,2966.0,2965.9,2.42792]
[1752306060727,49.229,2966.0,2965.9,2.42792]
[1752306060926,49.229,2966.0,2965.9,3.61062]
[1752306063830,49.903,2966.0,2965.9,6.81842]
[1752306064228,49.229,2966.0,2965.9,6.81842]
[1752306064926,49.903,2966.0,2965.9,6.81842]
[1752306065632,49.229,2966.0,2965.9,6.81842]
[1752306067131,49.903,2966.0,2965.9,6.81842]
[1752306067731,49.229,2966.0,2965.9,6.81842]
[1752306068830,49.903,2966.0,2965.9,6.81842]
[1752306070632,49.903,2966.0,2965.9,3.88182]
[1752306070833,49.903,2966.0,2965.9,3.2078]
[1752306071033,49.903,2966.0,2965.9,3.88182]
[1752306071636,49.903,2966.0,2965.9,3.2078]
[1752306071834,49.903,2966.0,2965.9,4.81542]
[1752306072434,49.903,2966.0,2965.9,4.1414]
[1752306072826,49.903,2966.0,2965.9,4.9617]
[1752306073835,49.903,2966.0,2965.9,5.63572]
[1752306076939,49.229,2966.0,2965.9,5.63572]
[1752306077939,49.903,2966.0,2965.9,5.63572]
[1752306078940,49.903,2966.0,2965.9,2.42792]
[1752306079235,49.229,2966.0,2965.9,5.63572]
[1752306079439,49.229,2966.0,2965.9,6.77432]
[1752306080041,49.903,2966.0,2965.9,6.77432]
[1752306080445,49.229,2966.0,2965.9,6.77432]
[1752306081042,49.1733,2966.0,2965.9,6.77432]
[1752306081638,1.7659,2965.8,2965.5,2.41132122]
[1752306081838,3.71779,2965.6,2965.5,2.41132122]
[1752306082036,3.0437,2965.6,2965.5,4.87443122]
[1752306082237,3.0437,2965.6,2965.5,6.01303122]
[1752306082543,3.0437,2965.6,2965.5,6.80951]
[1752306082742,3.0437,2965.6,2965.5,3.60171]
[1752306084142,3.0437,2965.6,2965.5,6.80951]
[1752306084342,3.0437,2965.6,2965.5,3.60171]
[1752306084841,3.0437,2965.6,2965.5,6.80951]
[1752306085643,3.71779,2965.6,2965.5,5.67091]
[1752306086143,3.0437,2965.6,2965.5,5.67091]
[1752306086633,3.71779,2965.6,2965.5,5.67091]
[1752306089748,3.0437,2965.6,2965.5,5.67091]
[1752306090349,3.0437,2965.6,2965.5,2.46311]
[1752306090852,3.71779,2965.6,2965.5,2.46311]
[1752306092752,3.71779,2965.6,2965.4,3.21285671]
[1752306092953,49.89881,2965.5,2965.4,3.21285671]
[1752306094555,49.89881,2965.5,2965.4,0.00505671]
[1752306095054,49.89881,2965.5,2965.4,0.67919671]
[1752306098658,49.2247,2965.5,2965.4,2.46819671]
[1752306099356,49.2247,2965.5,2965.4,3.60679671]
[1752306101061,48.2886,2965.5,2965.4,3.60679671]
[1752306101760,49.2247,2965.5,2965.4,3.60679671]
[1752306104966,49.2247,2965.5,2965.4,1.79405671]
[1752306105965,49.89881,2965.5,2965.4,0.67919671]
[1752306112271,49.89881,2965.5,2965.4,0.00505671]
[1752306114178,49.89881,2965.5,2965.4,0.67919671]
[1752306115077,49.89881,2965.5,2965.4,0.00505671]
[1752306115474,49.89881,2965.5,2965.4,0.67919671]
[1752306117480,49.89881,2965.5,2965.4,0.00505671]
[1752306118083,49.89881,2965.5,2965.4,0.67919671]
[1752306118268,49.2247,2965.5,2965.4,2.39659671]
[1752306118471,49.2247,2965.5,2965.4,3.49079671]
[1752306120577,49.2247,2965.5,2965.4,5.90711721]
[1752306121178,49.2247,2965.5,2965.4,3.49079671]
[1752306121379,49.2247,2965.5,2965.4,2.39659671]
[1752306122172,49.2247,2965.5,2965.4,4.81291721]
[1752306122574,49.89881,2965.5,2965.4,2.39659671]
[1752306122979,49.89881,2965.5,2965.4,4.81291721]
[1752306124074,49.2247,2965.5,2965.4,4.81291721]
[1752306124977,49.89881,2965.5,2965.4,4.81291721]
[1752306125980,49.2247,2965.5,2965.4,4.81291721]
[1752306126979,49.89881,2965.5,2965.4,4.81291721]
[1752306128380,49.2247,2965.5,2965.4,4.81291721]
[1752306129483,49.2247,2965.5,2965.4,5.90711721]
[1752306130079,49.2247,2965.5,2965.4,4.81291721]
[1752306131784,47.4588,2965.5,2965.4,3.49079671]
[1752306131980,48.4077,2965.5,2965.4,3.49079671]
[1752306132181,47.4588,2965.5,2965.4,3.49079671]
[1752306132382,47.4588,2965.5,2965.4,5.91295768]
[1752306132580,48.4077,2965.5,2965.4,5.91295768]
[1752306134178,48.4077,2965.5,2965.4,9.12075768]
[1752306134881,49.08181,2965.5,2965.4,9.12075768]
[1752306135081,48.4077,2965.5,2965.4,8.02655768]
[1752306135287,48.4077,2965.5,2965.4,9.07715768]
[1752306135989,48.4077,2965.5,2965.4,8.02655768]
[1752306136388,48.4077,2965.5,2965.4,9.07715768]
[1752306138191,48.4077,2965.5,2965.4,5.86935768]
[1752306138391,48.4077,2965.5,2965.4,9.07715768]
[1752306139692,49.08181,2965.5,2965.4,9.07715768]
[1752306139891,48.4077,2965.5,2965.4,8.02655768]
[1752306142190,46.138,2965.5,2965.4,9.07715768]
[1752306142494,46.138,2965.5,2965.4,9.07649809]
[1752306143291,48.2417,2965.5,2965.4,9.07649809]
[1752306143993,48.2417,2965.5,2965.4,6.65499671]
[1752306144387,48.2417,2965.5,2965.4,9.07638221]
[1752306145794,48.2417,2965.5,2965.4,8.02578221]
[1752306150297,48.2417,2965.5,2965.4,5.60439671]
[1752306151000,48.2417,2965.5,2965.4,8.02560602]
[1752306164209,48.2417,2965.5,2965.4,4.81780602]
[1752306164410,48.2417,2965.5,2965.4,8.02560602]
[1752306170016,48.2417,2965.5,2965.4,7.08400602]
[1752306172321,48.2417,2965.5,2965.4,6.30820602]
[1752306173520,48.2417,2965.5,2965.4,7.25710602]
[1752306173927,48.2417,2965.5,2965.4,7.99790602]
[1752306174429,48.2417,2965.5,2965.4,9.00570602]
[1752306174628,48.2417,2965.5,2965.4,7.99790602]
[1752306175128,48.2417,2965.5,2965.4,9.00570602]
[1752306176229,48.2417,2965.5,2965.4,6.58449671]
[1752306180234,46.138,2965.5,2965.4,6.58449671]
[1752306180530,46.093,2965.6,2965.5,1.9567]
[1752306180731,46.093,2965.7,2965.6,3.37159]
[1752306180931,1.1816,2965.7,2965.6,5.79103958]
[1752306182433,2.9677,2965.7,2965.6,5.79103958]
[1752306184736,1.1816,2965.7,2965.6,5.79103958]
[1752306187437,47.2736,2965.8,2965.7,3.37157]
[1752306187638,47.2736,2965.8,2965.7,6.57937]
[1752306188039,47.2736,2965.8,2965.7,3.37157]
[1752306188240,47.2736,2965.8,2965.7,6.57937]
[1752306188832,1.1816,2965.8,2965.7,6.57937]
[1752306190441,2.1671,2965.8,2965.7,6.57937]
[1752306191533,2.9677,2965.8,2965.7,8.99881958]
[1752306194145,46.083,2965.9,2965.7,8.99881958]
[1752306194146,47.2433,2965.9,2965.8,3.31685]
[1752306194646,48.2288,2965.9,2965.8,3.31685]
[1752306196046,2.8931,2965.9,2965.8,3.31685]
[1752306197447,1.1603,2965.9,2965.8,3.31685]
[1752306197843,2.1102,2965.9,2965.8,3.31685]
[1752306198345,2.8575,2965.9,2965.8,3.31685]
[1752306199350,1.1603,2965.9,2965.8,3.31685]
[1752306201051,2.8575,2965.9,2965.8,3.31685]
[1752306203654,46.068,2966.1,2966.0,1.4022]
[1752306203857,46.068,2966.1,2966.0,6.5387]
[1752306203858,48.1782,2966.1,2966.0,6.5387]
[1752306205055,48.1782,2966.1,2966.0,5.58]
[1752306209456,48.1782,2966.1,2966.0,3.2078]
[1752306209661,0.67402,2965.9,2965.8,2.41586522]
[1752306209863,49.58452,2965.9,2965.8,3.08991522]
[1752306210062,49.58452,2965.9,2965.8,2.41586522]
[1752306210260,0.67405,2965.8,2965.7,6.29772522]
[1752306210460,3.53155,2965.8,2965.7,3.88186]
[1752306210660,5.41150507,2965.8,2965.7,3.88186]
[1752306210962,5.41150507,2965.8,2965.7,6.29900194]
[1752306211657,4.73745507,2965.8,2965.7,6.29900194]
[1752306211859,5.41150507,2965.8,2965.7,6.29900194]
[1752306212357,5.41150507,2965.8,2965.7,2.41714194]
[1752306212558,0.7473,2965.6,2965.5,0.6741]
[1752306212755,48.9085,2965.6,2965.5,0.6741]
[1752306212958,48.9085,2965.6,2965.5,3.09211137]
[1752306213359,49.58259,2965.6,2965.5,3.09211137]
[1752306214167,49.58259,2965.6,2965.5,2.41801137]
[1752306214363,2.37131,2965.5,2965.4,0.00505671]
[1752306214561,3.53161,2965.5,2965.4,2.42306808]
[1752306214762,3.53161,2965.5,2965.4,0.00505671]
[1752306215363,3.53161,2965.5,2965.4,0.67919671]
[1752306216371,2.8575,2965.5,2965.4,0.67919671]
[1752306217668,3.53161,2965.5,2965.4,0.67919671]
[1752306222270,3.53161,2965.5,2965.4,3.88699671]
[1752306222669,2.8575,2965.5,2965.4,3.88699671]
[1752306223773,3.53161,2965.5,2965.4,3.88699671]
[1752306224272,3.53161,2965.5,2965.4,0.00505671]
[1752306225173,3.53161,2965.5,2965.4,0.67919671]
[1752306225672,3.53161,2965.5,2965.4,0.00505671]
[1752306227882,0.7817,2965.0,2964.9,2.4798545]
[1752306228176,49.64433,2965.0,2964.9,2.4798545]
[1752306228378,49.64433,2965.0,2964.9,1.8056145]
[1752306228881,49.64433,2965.0,2964.9,2.4798645]
[1752306229178,49.64433,2965.0,2964.9,3.2659645]
[1752306229578,49.64433,2965.0,2964.9,2.5917145]
[1752306229780,49.64433,2965.0,2964.9,0.7861]
[1752306229978,49.64433,2965.0,2964.9,1.46035]
[1752306230681,48.9701,2965.0,2964.9,1.46035]
[1752306230879,49.64433,2965.0,2964.9,2.40365]
[1752306231573,49.64433,2965.0,2964.9,3.47335]
[1752306232783,49.64433,2965.0,2964.9,2.40365]
[1752306234480,1.45595,2964.9,2964.8,3.88206]
[1752306234684,3.60135,2964.9,2964.8,3.2078]
[1752306234989,0.6743,2964.7,2964.6,1.7294]
[1752306235286,49.6444,2964.7,2964.6,5.6115]
[1752306235484,49.6444,2964.7,2964.6,3.8821]
[1752306235677,49.6444,2964.7,2964.6,3.2078]
[1752306236277,49.6444,2964.7,2964.6,3.88212]
[1752306237182,49.6444,2964.7,2964.6,3.2078]
[1752306237383,49.6444,2964.7,2964.6,3.88212]
[1752306237780,49.6444,2964.7,2964.6,3.2078]
[1752306237986,49.6444,2964.7,2964.6,3.9939]
[1752306238183,49.6444,2964.7,2964.6,4.9372]
[1752306238982,49.6444,2964.7,2964.6,1.7294]
[1752306239187,49.6444,2964.7,2964.6,4.9372]
[1752306239587,49.6444,2964.7,2964.6,5.61152]
[1752306240088,48.9701,2964.7,2964.6,5.61152]
[1752306240290,49.6444,2964.7,2964.6,5.61152]
[1752306240785,49.6444,2964.7,2964.6,4.66822]
[1752306240988,48.9701,2964.7,2964.6,4.66822]
[1752306241288,48.9701,2964.7,2964.6,5.61152]
[1752306241489,48.9701,2964.7,2964.6,6.68122]
[1752306241892,47.9787,2964.7,2964.6,6.68122]
[1752306242191,0.7817,2965.1,2965.0,0.7861]
[1752306242492,48.9671,2965.1,2965.0,5.61143]
[1752306242799,48.9671,2965.1,2965.0,6.68113]
[1752306245297,49.719,2965.6,2965.5,2.40351]
[1752306245491,95.758,2965.6,2965.5,3.47321]
[1752306245794,96.7494,2965.6,2965.5,3.47321]
[1752306245995,96.7494,2965.6,2965.5,2.40351]
[1752306246198,48.1844,2965.6,2965.5,2.40351]
[1752306247898,48.1844,2965.6,2965.5,1.46021]
[1752306249186,48.1844,2965.6,2965.5,2.40351]
[1752306250795,48.1844,2965.6,2965.5,3.47321]
[1752306255294,46.027,2965.7,2965.6,3.39319]
[1752306255500,48.0816,2965.7,2965.6,6.60099]
[1752306257600,47.1387,2965.7,2965.6,6.60099]
[1752306258101,46.027,2965.7,2965.6,6.60099]
[1752306258695,2.7708,2966.2,2966.1,3.39306]
[1752306258900,48.7918,2966.2,2966.1,3.39306]
[1752306259298,3.44479,2966.1,2966.0,0.67399]
[1752306259505,0.7162,2965.8,2965.7,2.30837]
[1752306259806,48.7908,2965.8,2965.7,3.39317]
[1752306268901,48.7908,2965.8,2965.7,2.49197]
[1752306269107,50.67075507,2965.8,2965.7,0.67407]
[1752306269310,50.67075507,2965.8,2965.7,1.40717]
[1752306270708,48.7908,2965.8,2965.7,2.30837]
[1752306273702,48.7908,2965.8,2965.6,3.88189]
[1752306273703,2.7708,2965.7,2965.6,3.88189]
[1752306274408,2.7708,2965.7,2965.6,5.51619]
[1752306275108,2.7708,2965.7,2965.6,6.60099]
[1752306276806,46.02,2965.8,2965.7,2.30837]
[1752306277104,48.0746,2965.8,2965.7,3.39317]
[1752306277305,47.1317,2965.8,2965.7,3.39317]
[1752306277705,48.0746,2965.8,2965.7,2.49197]
[1752306278111,48.0746,2965.8,2965.7,3.39317]
[1752306281213,46.02,2965.8,2965.7,6.60097]
[1752306282004,46.02,2965.8,2965.7,9.01649502]
[1752306282415,48.0746,2965.8,2965.7,9.01649502]
[1752306282714,47.1317,2965.8,2965.7,9.01649502]
[1752306283314,48.0746,2965.8,2965.7,9.01649502]
[1752306284014,47.1317,2965.8,2965.7,9.01649502]
[1752306284515,48.0746,2965.8,2965.7,9.01649502]
[1752306284810,48.0746,2965.8,2965.7,8.11529502]
[1752306285216,48.0746,2965.8,2965.7,6.60097]
[1752306295817,48.0746,2965.8,2965.7,5.69977]
[1752306296117,48.0746,2965.8,2965.7,6.61357]
[1752306296819,48.0746,2965.8,2965.7,3.2078]
[1752306297024,2.7093,2965.7,2965.6,2.41775952]
[1752306297220,2.7093,2965.7,2965.6,3.09184952]
[1752306299724,2.7093,2965.7,2965.6,3.85084952]
[1752306300120,2.7093,2965.7,2965.6,5.85754952]
[1752306300327,48.6943,2965.7,2965.6,5.85754952]
[1752306300628,48.6943,2965.7,2965.6,3.43979]
[1752306301819,48.6943,2965.7,2965.6,0.67409]
[1752306302326,48.6943,2965.7,2965.6,3.43979]
[1752306303829,48.6943,2965.7,2965.6,2.34689]
[1752306304529,48.6943,2965.7,2965.6,1.43309]
[1752306305329,48.6943,2965.7,2965.6,5.55469]
[1752306306528,48.6943,2965.7,2965.6,2.34689]
[1752306306730,48.6943,2965.7,2965.6,5.55469]